{"text_format":"3","workbook":"xlsx","n_sheets":1,"sheets":["Pricing schedule for 6 months"],"not_rendered":{"images":1,"defined_names":2,"comments":2},"read":"whole","date_system":"1900"}

{"sheet":"Pricing schedule for 6 months","index":0,"n_rows":32,"n_cols":8,"rows_kept":32,"merged":[[1,2,1,7],[3,5,3,7],[4,1,4,2],[5,1,5,2],[6,1,6,2],[7,1,7,2],[8,1,8,2],[9,1,9,2],[11,1,11,2],[12,1,12,2],[13,1,13,2],[14,1,14,2],[15,1,15,2],[17,1,17,2],[19,2,19,5],[19,6,19,7],[20,2,20,5],[20,6,20,7],[21,2,21,5],[21,6,21,7],[27,1,27,5],[28,2,28,5],[29,2,29,5],[30,2,30,5],[31,1,32,1],[31,2,31,5],[32,2,32,5]]}
[null,null,"APPENDIX A - PRICING SHEET "]
[null,null," APPOINTMENT OF A SERVICE PROVIDER FOR PROVISION OF PAYROLL SERVICES FOR STIPENDS AND UNEMPLOYED INSURANCE FUND (UiF) FOR UNEMPLOYED LEARNERS"]
[null,null,"                       RFQ NUMBER: BS/2026/RFQ1775"]
[]
["No","Specification / Description A",null,"Number of students","Monthly Payment","Quantity of  goods/ Service ","Cost per learner ( Ex Vat)","Total for 6 months"]
[1,"Monthly payroll administration ( 1 830 x 06 months)",null,1830,{"$f":"D6*G6","v":18300},6,{"v":10,"d":"R 10.00"},{"$f":"E6*F6","v":{"v":109800,"d":"R109,800.00"}}]
[2,"Issuing of payslips on monthly basis to learner email",null,1830,{"$f":"D7*G7","v":36600},6,{"v":20,"d":"R 20.00"},{"$f":"E7*F7","v":{"v":219600,"d":"R219,600.00"}}]
[3,"Registration of learners and processing of Unemployment Insurance Fund (UiF) monthly",null,1830,54900,6,{"v":30,"d":"R 30.00"},{"v":329400,"d":"R329,400.00"}]
[4,"Submission of monthly reports showing expenditure and reconciliations",null,1830,9150,6,{"v":5,"d":"R 5.00"},{"v":54900,"d":"R54,900.00"}]
[null,true,{"$nulls":4},{"$f":"SUM(G6:G8)","v":{"v":60,"d":"R 60.00"}},{"$f":"SUM(H6:H9)","v":{"v":713700,"d":"R 713,700.00"}}]
[]
[null,"Other Items not included in above - BIDDER TO SPECIFY",{"$nulls":3},"Quantity of  goods/ Service ","Unit Price ( Ex Vat)","Total for 6 months"]
[null,"1,\t",{"$nulls":3},1,{"v":0,"d":"R 0.00"},{"$f":"F13*G13","v":{"v":0,"d":"R 0.00"}}]
[null,2,{"$nulls":5},{"$f":"F14*G14","v":{"v":0,"d":"R 0.00"}}]
[null,3,{"$nulls":5},{"v":0,"d":"R 0.00"}]
[null,4,{"$nulls":5},{"v":0,"d":"R 0.00"}]
[null,5,{"$nulls":5},{"v":0,"d":"R 0.00"}]
[null,"OPTIONAL /ADDITIONAL",{"$nulls":4},{"$f":"SUM(G13:G17)","v":{"v":0,"d":"R 0.00"}},{"$f":"SUM(H13:H17)","v":{"v":0,"d":"R 0.00"}}]
[]
[null,null,"Total VAT excl",{"$nulls":3},{"$f":"H10+H18","v":{"v":713700,"d":"R713,700.00"}}]
[null,true,"VAT (if VAT registered)",{"$nulls":3},{"$f":"G20*0.15","v":{"v":107055,"d":"R107,055.00"}}]
[null,null,"TOTAL BID PRICE ",{"$nulls":3},{"$f":"G20+G21","v":{"v":820755,"d":"R820,755.00"}}]
[null,"Notes:"]
[null,"Pricing must cover all items detailed in the Terms of Reference"]
[null,"Pricing must include Value Added Tax (VAT) at the end if the bidder is registered for VAT, or should be registered for VAT"]
[null,"Service provider should complete blocks in yellow. Total values in this spreadsheet are automatically calculated and filled in."]
[null,"Service Provider to check totals and the overall bid price for completeness and accuracy."]
[null,"The monthly payment will vary as per number of learners "]
[null,"Date:"]
[null,"Service Provider Name"]
[null,"Name of Person Signing"]
[null,"Signature"]